Workbook

Sheet Plan1
I2: =SUBTOTAL(9,I5:I41) -> 114.7452073 | J2: 81.28749997
G3: Custo C/ICMS, PIS, | H3: Custo CIF | I3: Aluminio
A4: Consumo | B4: ICMS % | C4: IPI % | D4: PIS % | E4: COFINS % | F4: MOEDA | G4: COFINS S/ FRETE | H4: S/ICMS | I4: DOLAR USD | J4: Aluminio Custo Fabricação | K4: Frete
A5: 6.37 | B5: 18 | C5: 0 | D5: 1.65 | E5: 7.6 | G5: 29.9 | H5: =G5*((1-B5/100)*(1-(D5+E5)/100)*K5) -> 22.91758755 | I5: =A5*(16.16*(1-((B5)/100))) * K5 -> 86.94244832 | J5: =A5*(13.74*(1-((B5)/100))) * K5 -> 73.92260148 | K5: 1.03
A6: 7.3122 | B6: 12 | C6: 0 | D6: 1.65 | E6: 7.6 | G6: 73.72 | H6: =G6*((1-B6/100)*(1-(D6+E6)/100)*K6) -> 58.872792 | I6: =A6*(0*(1-((B6)/100))) * K6 -> 0 | J6: =A6*(0*(1-((B6)/100))) * K6 -> 0 | K6: 1
A7: 48 | B7: 0 | C7: 0 | D7: 0 | E7: 0 | G7: 0 | H7: =G7*((1-B7/100)*(1-(D7+E7)/100)*K7) -> 0 | I7: 0 | J7: 0 | K7: 0
A8: 0.40382 | B8: 12 | C8: 0 | D8: 1.65 | E8: 7.6 | G8: 69.75 | H8: =G8*((1-B8/100)*(1-(D8+E8)/100)*K8) -> 55.70235 | I8: =A8*(0*(1-((B8)/100))) * K8 -> 0 | J8: =A8*(0*(1-((B8)/100))) * K8 -> 0 | K8: 1
A9: 0.0144 | B9: 0 | C9: 0 | D9: 0 | E9: 0 | G9: 70.9 | H9: =G9*((1-B9/100)*(1-(D9+E9)/100)*K9) -> 70.9 | I9: 0 | J9: 0 | K9: 1
A10: 0.0144 | B10: 0 | C10: 0 | D10: 0 | E10: 0 | G10: 70.9 | H10: =G10*((1-B10/100)*(1-(D10+E10)/100)*K10) -> 70.9 | I10: 0 | J10: 0 | K10: 1
A11: 0.0144 | B11: 0 | C11: 0 | D11: 0 | E11: 0 | G11: 70.9 | H11: =G11*((1-B11/100)*(1-(D11+E11)/100)*K11) -> 70.9 | I11: 0 | J11: 0 | K11: 1
A12: 0.0144 | B12: 0 | C12: 0 | D12: 0 | E12: 0 | G12: 70.9 | H12: =G12*((1-B12/100)*(1-(D12+E12)/100)*K12) -> 70.9 | I12: 0 | J12: 0 | K12: 1
A13: 1.2656 | B13: 18 | C13: 3.25 | D13: 1.65 | E13: 7.6 | G13: 32.9 | H13: =G13*((1-B13/100)*(1-(D13+E13)/100)*K13) -> 25.21701105 | I13: =A13*(26.01*(1-((B13)/100))) * K13 -> 27.80275902 | J13: =A13*(6.89*(1-((B13)/100))) * K13 -> 7.364898486 | K13: 1.03
A14: 0.891 | B14: 12 | C14: 0 | D14: 1.65 | E14: 7.6 | G14: 64.26 | H14: =G14*((1-B14/100)*(1-(D14+E14)/100)*K14) -> 51.318036 | I14: =A14*(0*(1-((B14)/100))) * K14 -> 0 | J14: =A14*(0*(1-((B14)/100))) * K14 -> 0 | K14: 1
A15: 0.1448 | B15: 12 | C15: 0 | D15: 1.65 | E15: 7.6 | G15: 68.87 | H15: =G15*((1-B15/100)*(1-(D15+E15)/100)*K15) -> 54.999582 | I15: =A15*(0*(1-((B15)/100))) * K15 -> 0 | J15: =A15*(0*(1-((B15)/100))) * K15 -> 0 | K15: 1
A16: 0.7539 | B16: 12 | C16: 0 | D16: 1.65 | E16: 7.6 | G16: 64.38 | H16: =G16*((1-B16/100)*(1-(D16+E16)/100)*K16) -> 51.413868 | I16: =A16*(0*(1-((B16)/100))) * K16 -> 0 | J16: =A16*(0*(1-((B16)/100))) * K16 -> 0 | K16: 1
A17: 0.0152 | B17: 18 | C17: 0 | D17: 1.65 | E17: 7.6 | G17: 598.3975 | H17: =G17*((1-B17/100)*(1-(D17+E17)/100)*K17) -> 458.6564246 | I17: 0 | J17: 0 | K17: 1.03
A18: 0.0919 | B18: 18 | C18: 0 | D18: 1.65 | E18: 7.6 | G18: 311.3042 | H18: =G18*((1-B18/100)*(1-(D18+E18)/100)*K18) -> 238.606731 | I18: 0 | J18: 0 | K18: 1.03
A19: 1 | B19: 18 | C19: 0 | D19: 1.65 | E19: 7.6 | G19: 0.74 | H19: =G19*((1-B19/100)*(1-(D19+E19)/100)*K19) -> 0.56719113 | I19: 0 | J19: 0 | K19: 1.03
A20: 1 | B20: 18 | C20: 0 | D20: 1.65 | E20: 7.6 | G20: 0.57 | H20: =G20*((1-B20/100)*(1-(D20+E20)/100)*K20) -> 0.436890465 | I20: 0 | J20: 0 | K20: 1.03
A21: 1 | B21: 18 | C21: 9.75 | D21: 1.65 | E21: 7.6 | G21: 0.11 | H21: =G21*((1-B21/100)*(1-(D21+E21)/100)*K21) -> 0.084312195 | I21: 0 | J21: 0 | K21: 1.03
A22: 0.3333 | B22: 0 | C22: 0 | D22: 1.65 | E22: 7.6 | G22: 226.52 | H22: =G22*((1-B22/100)*(1-(D22+E22)/100)*K22) -> 211.733907 | I22: 0 | J22: 0 | K22: 1.03
A23: 1.462 | B23: 0 | C23: 0 | D23: 1.65 | E23: 7.6 | G23: 22.85 | H23: =G23*((1-B23/100)*(1-(D23+E23)/100)*K23) -> 25.23616838 | I23: 0 | J23: 0 | K23: 1.217
A24: 0.2998 | B24: 0 | C24: 0 | D24: 0 | E24: 0 | G24: 115.36 | H24: =G24*((1-B24/100)*(1-(D24+E24)/100)*K24) -> 115.36 | I24: 0 | J24: 0 | K24: 1
A25: 0.0741 | B25: 0 | C25: 0 | D25: 0 | E25: 0 | G25: 115.36 | H25: =G25*((1-B25/100)*(1-(D25+E25)/100)*K25) -> 115.36 | I25: 0 | J25: 0 | K25: 1
A26: 0.084 | B26: 0 | C26: 0 | D26: 0 | E26: 0 | G26: 275.19 | H26: =G26*((1-B26/100)*(1-(D26+E26)/100)*K26) -> 275.19 | I26: 0 | J26: 0 | K26: 1
A27: 0.1633 | B27: 0 | C27: 0 | D27: 0 | E27: 0 | G27: 39.66 | H27: =G27*((1-B27/100)*(1-(D27+E27)/100)*K27) -> 39.66 | I27: 0 | J27: 0 | K27: 1
A28: 0.2737 | B28: 0 | C28: 0 | D28: 0 | E28: 0 | G28: 70.9 | H28: =G28*((1-B28/100)*(1-(D28+E28)/100)*K28) -> 70.9 | I28: 0 | J28: 0 | K28: 1
A29: 0.3472 | B29: 0 | C29: 0 | D29: 0 | E29: 0 | G29: 39.66 | H29: =G29*((1-B29/100)*(1-(D29+E29)/100)*K29) -> 39.66 | I29: 0 | J29: 0 | K29: 1
A30: 0.2669 | B30: 0 | C30: 0 | D30: 0 | E30: 0 | G30: 52.87 | H30: =G30*((1-B30/100)*(1-(D30+E30)/100)*K30) -> 52.87 | I30: 0 | J30: 0 | K30: 1
A31: 0.0401 | B31: 0 | C31: 0 | D31: 0 | E31: 0 | G31: 39.66 | H31: =G31*((1-B31/100)*(1-(D31+E31)/100)*K31) -> 39.66 | I31: 0 | J31: 0 | K31: 1
A32: 0.0036 | B32: 0 | C32: 0 | D32: 0 | E32: 0 | G32: 39.66 | H32: =G32*((1-B32/100)*(1-(D32+E32)/100)*K32) -> 39.66 | I32: 0 | J32: 0 | K32: 1
A33: 0.0152 | B33: 0 | C33: 0 | D33: 0 | E33: 0 | G33: 39.66 | H33: =G33*((1-B33/100)*(1-(D33+E33)/100)*K33) -> 39.66 | I33: 0 | J33: 0 | K33: 1
A34: 0.0311 | B34: 0 | C34: 0 | D34: 0 | E34: 0 | G34: 108.15 | H34: =G34*((1-B34/100)*(1-(D34+E34)/100)*K34) -> 108.15 | I34: 0 | J34: 0 | K34: 1
A35: 0.0288 | B35: 0 | C35: 0 | D35: 0 | E35: 0 | G35: 52.87 | H35: =G35*((1-B35/100)*(1-(D35+E35)/100)*K35) -> 52.87 | I35: 0 | J35: 0 | K35: 1
A36: 0.046 | B36: 0 | C36: 0 | D36: 0 | E36: 0 | G36: 39.66 | H36: =G36*((1-B36/100)*(1-(D36+E36)/100)*K36) -> 39.66 | I36: 0 | J36: 0 | K36: 1
A37: 0.0498 | B37: 0 | C37: 0 | D37: 0 | E37: 0 | G37: 39.66 | H37: =G37*((1-B37/100)*(1-(D37+E37)/100)*K37) -> 39.66 | I37: 0 | J37: 0 | K37: 1
A38: 0.1182 | B38: 0 | C38: 0 | D38: 0 | E38: 0 | G38: 39.66 | H38: =G38*((1-B38/100)*(1-(D38+E38)/100)*K38) -> 39.66 | I38: 0 | J38: 0 | K38: 1
A39: 0.0036 | B39: 0 | C39: 0 | D39: 0 | E39: 0 | G39: 61.29 | H39: =G39*((1-B39/100)*(1-(D39+E39)/100)*K39) -> 61.29 | I39: 0 | J39: 0 | K39: 1
A40: 0.0878 | B40: 0 | C40: 0 | D40: 0 | E40: 0 | G40: 39.66 | H40: =G40*((1-B40/100)*(1-(D40+E40)/100)*K40) -> 39.66 | I40: 0 | J40: 0 | K40: 1
A41: 0.164 | B41: 0 | C41: 0 | D41: 0 | E41: 0 | G41: 39.66 | H41: =G41*((1-B41/100)*(1-(D41+E41)/100)*K41) -> 39.66 | I41: 0 | J41: 0 | K41: 1
I42: =SUM(I5:I41) -> 114.7452073 | J42: 81.28749997
I43: =(SUM(I5:I41)) / $G$46 ->  | J43: =(SUM(J5:J41)) / $G$46 -> 
G45: =#REF! +#REF! +#REF! +#REF! +#REF! +#REF! +#REF! +#REF! +#REF!+ I42+ J42 +#REF! +#REF! -> 
G46: =#REF! +#REF! +#REF! +#REF! +#REF! +#REF! +#REF! +#REF! +#REF!+ I42+ J42 +#REF! +#REF! +#REF! -> 
